fUSD/lending_fUSD_20260507
["ID","MTS","AMOUNT","RATE_DAILY","PERIOD"]
[421775144,1778135432000,-165.7905639,0.00012656,2]
[421775134,1778135432000,-9999.99,0.00012635,2]
[421775128,1778135432000,-16743.78019121,0.00012517,2]
[421775139,1778135432000,-150.99,0.00012635,2]
[421775141,1778135432000,-622.55,0.00012635,2]
[421775132,1778135432000,-151.0,0.00012618,2]
[421775131,1778135432000,-310.0,0.00012521,3]
[421775130,1778135432000,-164.0,0.00012517,3]
[421775127,1778135432000,-150.0,0.00012516,2]
[421775124,1778135432000,-300.0,0.00012508,2]
[421775123,1778135432000,-2080.17592889,0.00012503,2]
[421775146,1778135432000,-775.63,0.00012684,2]
[421775126,1778135432000,-42862.8993329,0.00012509,2]
[421775129,1778135432000,-16982.58941175,0.00012517,2]
[421775122,1778135432000,-170.43,0.00012326,2]
[421775140,1778135432000,-3316.28,0.00012635,2]
[421775149,1778135432000,-233.98723583,0.00012793,2]
[421775125,1778135432000,-1200.0,0.00012508,2]
[421775152,1778135432000,-3106.87538526,0.00012793,2]
[421775151,1778135432000,-30032.68301474,0.00012793,2]
[421775186,1778135432000,-58973.88463747,0.00013016,2]
[421775181,1778135432000,-10602.76616631,0.00013016,2]
[421775185,1778135432000,-857.03856977,0.00013016,2]
[421775182,1778135432000,-5072.8444088,0.00013016,2]
[421775180,1778135432000,-258.87669316,0.00013015,2]
[421775183,1778135432000,-66385.81856894,0.00013016,2]
[421775178,1778135432000,-500.0,0.00013015,2]
[421775177,1778135432000,-617.98020332,0.00013015,2]
[421775175,1778135432000,-500.0,0.00013015,2]
[421775174,1778135432000,-150.0,0.00012987,2]
[421775172,1778135432000,-775.63,0.00012979,2]
[421775165,1778135432000,-2000.0,0.00012908,2]
[421775184,1778135432000,-277.70821029,0.00013016,2]
[421775168,1778135432000,-192.59223205,0.00012951,2]
[421775167,1778135432000,-2000.0,0.00012908,2]
[421775150,1778135432000,-2000.0,0.00012793,2]
[421775155,1778135432000,-151.0,0.0001289,2]
[421775157,1778135432000,-9999.99,0.00012893,2]
[421775158,1778135432000,-11046.55,0.00012893,2]
[421775156,1778135432000,-636.17411152,0.00012892,2]
[421775153,1778135432000,-6269.34292522,0.00012793,2]
[421775159,1778135432000,-2000.0,0.00012908,2]
[421775162,1778135432000,-2000.0,0.00012908,2]
[421775170,1778135432000,-2354.51798463,0.00012952,2]
[421775164,1778135432000,-2000.0,0.00012908,2]
[421775171,1778135432000,-956.4322705,0.00012952,2]
[421775161,1778135432000,-2000.0,0.00012908,2]
[421775200,1778135438000,-411.71647197,0.00013016,2]
[421775198,1778135438000,-151.0,0.00013016,2]
[421775199,1778135438000,-151.0,0.00013016,2]
[421775202,1778135438000,-10391.57037895,0.00013016,2]
[421775206,1778135438000,-1429.07541664,0.00013016,2]
[421775204,1778135438000,-8147.23437027,0.00013016,2]
[421775203,1778135438000,-1800.69231806,0.00013016,2]
[421775205,1778135438000,-380.52932165,0.00013016,2]
[421775201,1778135438000,-547.18044516,0.00013016,2]
[421775210,1778135440000,-151.0,0.00013016,2]
[421775211,1778135440000,-182.1039288,0.00013016,2]
[421775214,1778135440000,-500.0,0.00013073,2]
[421775215,1778135440000,-500.25010277,0.00013073,2]
[421775213,1778135440000,-2157.14243826,0.00013051,2]
[421775217,1778135440000,-2000.0,0.00013274,2]
[421775212,1778135440000,-47794.37694406,0.00013016,2]
[421775221,1778135440000,-158.19593107,0.00013497,2]
[421775216,1778135440000,-500.18331774,0.00013073,2]
[421775218,1778135440000,-199.77,0.000134,2]
[421775220,1778135440000,-1000.0,0.00013497,2]
[421775223,1778135440000,-186.44034938,0.00013559,2]
[421775222,1778135440000,-1000.0,0.000135,2]
[421775224,1778135440000,-2236.95670848,0.00013599,2]
[421775226,1778135440000,-500.0,0.00013698,2]
[421775225,1778135440000,-4330.13994821,0.00013673,2]
[421775229,1778135440000,-200.0,0.00013699,2]
[421775228,1778135440000,-500.0,0.00013698,2]
[421775227,1778135440000,-500.0,0.00013698,2]
[421775219,1778135440000,-150.0,0.00013488,2]
[421775240,1778135441000,-300.0,0.00013762,2]
[421775241,1778135441000,-300.0,0.00013762,2]
[421775242,1778135441000,-300.0,0.00013762,2]
[421775238,1778135441000,-300.0,0.00013762,2]
[421775237,1778135441000,-960.0,0.00013759,2]
[421775232,1778135441000,-816.02,0.00013699,2]
[421775234,1778135441000,-163.03,0.000137,2]
[421775235,1778135441000,-5000.0,0.00013754,2]
[421775233,1778135441000,-166.66,0.00013699,2]
[421775245,1778135441000,-500.0,0.00013768,2]
[421775230,1778135441000,-195.84,0.00013699,2]
[421775231,1778135441000,-163.2,0.00013699,2]
[421775236,1778135441000,-250.0,0.00013754,2]
[421775244,1778135441000,-193.0,0.00013768,2]
[421775239,1778135441000,-300.0,0.00013762,2]
[421775246,1778135441000,-250.0,0.00013768,2]
[421775243,1778135441000,-290.7,0.00013762,2]
[421775257,1778135441000,-606.99083397,0.00014147,2]
[421775258,1778135441000,-595.85768052,0.00014147,2]
[421775255,1778135441000,-2100.37727326,0.0001408,2]
[421775256,1778135441000,-166.66,0.0001411,2]
[421775253,1778135441000,-1549.39601164,0.0001408,2]
[421775259,1778135441000,-380.30947352,0.00014147,2]
[421775252,1778135441000,-250.0,0.00014,2]
[421775251,1778135441000,-573.27424386,0.00013989,2]
[421775250,1778135441000,-166.66,0.00013973,2]
[421775248,1778135441000,-166.66,0.00013836,2]
[421775249,1778135441000,-2698.54457888,0.00013865,2]
[421775247,1778135441000,-300.45549685,0.00013768,2]
[421775254,1778135441000,-442.28183435,0.0001408,2]
[421775294,1778135443000,-545.31825995,0.000149,5]
[421775288,1778135443000,-300.0,0.000147,5]
[421775290,1778135443000,-600.0,0.000148,5]
[421775292,1778135443000,-968.38065445,0.000149,2]
[421775293,1778135443000,-454.68174005,0.000149,5]
[421775283,1778135443000,-597.56611868,0.00014147,2]
[421775284,1778135443000,-150.0,0.00014237,2]
[421775285,1778135443000,-166.66,0.00014247,2]
[421775282,1778135443000,-139.0,0.00014147,2]
[421775281,1778135443000,-151.0,0.00014147,2]
[421775289,1778135443000,-2000.0,0.00014749,2]
[421775286,1778135443000,-166.66,0.00014384,2]
[421775291,1778135443000,-4031.61934555,0.000149,2]
[421775301,1778135443000,-500.0,0.00014999,2]
[421775295,1778135443000,-150.0,0.00014986,2]
[421775306,1778135443000,-548.99807153,0.00015,5]
[421775304,1778135443000,-352.27359289,0.00015,5]
[421775305,1778135443000,-680.72833558,0.00015,5]
[421775303,1778135443000,-500.0,0.00014999,2]
[421775307,1778135443000,-502.45432093,0.00015,5]
[421775287,1778135443000,-2405.55389864,0.00014695,2]
[421775302,1778135443000,-500.0,0.00014999,2]
[421775298,1778135443000,-500.0,0.00014999,2]
[421775300,1778135443000,-500.0,0.00014999,2]
[421775296,1778135443000,-151.98442756,0.0001499,2]
[421775297,1778135443000,-500.0,0.00014999,2]
[421775299,1778135443000,-500.0,0.00014999,2]
[421775312,1778135444000,-5313.86629587,0.00015,2]
[421775310,1778135444000,-150.0,0.00015,2]
[421775308,1778135444000,-760.54567907,0.00015,5]
[421775319,1778135446000,-3110.30451518,0.00015,2]
[421775320,1778135446000,-675209.85906643,0.00015,2]
[421775318,1778135446000,-3267.53507715,0.00015,2]
[421775325,1778135447000,-4318.95480034,0.00015,2]
[421775327,1778135447000,-57704.24108967,0.00015,2]
[421775329,1778135447000,-257.12215876,0.00015,2]
[421775328,1778135447000,-628.94749771,0.00015,2]
[421775340,1778135650000,-859.56984919,0.00012629,2]
[421775342,1778135651000,-500.0,0.00012692,2]
[421775341,1778135651000,-4293.59245781,0.00012629,2]
[421775343,1778135651000,-359.56984919,0.00012692,2]
[421775345,1778135651000,-500.0,0.00012692,2]
[421775344,1778135651000,-245.16095807,0.00012692,2]
[421775355,1778135651000,-300.0,0.00012692,2]
[421775353,1778135651000,-300.0,0.00012692,2]
[421775349,1778135651000,-500.0,0.00012692,2]
[421775350,1778135651000,-345.26787601,0.00012692,2]
[421775354,1778135651000,-150.0,0.00012692,2]
[421775346,1778135651000,-212.1837655,0.00012692,2]
[421775351,1778135651000,-373.9814751,0.00012692,2]
[421775348,1778135651000,-500.0,0.00012692,2]
[421775352,1778135651000,-300.0,0.00012692,2]
[421775347,1778135651000,-244.99882724,0.00012692,2]
[421775356,1778135651000,-1181.56940508,0.00012693,2]
[421775357,1778135652000,-5153.162307,0.00012692,2]
[421775358,1778135756000,152.0,0.00012511,7]
[421775359,1778135848000,-150.0,0.000125,2]
[421775360,1778135854000,1730.28446386,0.00012493,2]
[421775361,1778135948000,258.72737415,0.00012492,2]
[421775362,1778135954000,258.72737413,0.00012493,2]
[421775363,1778135960000,258.72737413,0.00012493,2]
[421775365,1778135982000,759.89677919,0.00012493,2]
[421775366,1778136049000,2697.04400276,0.00012493,2]
[421775367,1778136079000,228.01779136,0.00012493,2]
[421775368,1778136088000,658.57484042,0.00012341,2]
[421775375,1778136560000,-300.0,0.00011415,2]
[421775377,1778136560000,-150.0,0.00011416,2]
[421775376,1778136560000,-150.00000001,0.00011416,2]
[421775378,1778136560000,-150.0,0.00011416,2]
[421775380,1778136560000,-228.70687485,0.00011416,2]
[421775382,1778136560000,-150.0,0.00011416,2]
[421775381,1778136560000,-151.82416866,0.00011416,2]
[421775383,1778136560000,-127.64929415,0.00011416,2]
[421775379,1778136560000,-150.0,0.00011416,2]
[421775396,1778136631000,-250.0,0.00011422,2]
[421775405,1778136631000,-166.43,0.00011622,2]
[421775404,1778136631000,-5659.4161319,0.0001157,2]
[421775403,1778136631000,-1200.0,0.00011569,2]
[421775401,1778136631000,-150.0,0.00011532,2]
[421775406,1778136631000,-150.0,0.00011628,2]
[421775412,1778136631000,-150.0,0.00011762,2]
[421775402,1778136631000,-300.0,0.00011569,2]
[421775399,1778136631000,-250.0,0.00011504,2]
[421775398,1778136631000,-182.60906706,0.00011428,2]
[421775390,1778136631000,-1057.05007725,0.00011248,2]
[421775397,1778136631000,-1679.69,0.00011428,2]
[421775392,1778136631000,-150.0,0.00011416,2]
[421775413,1778136631000,-150.0,0.00011839,2]
[421775395,1778136631000,-182.60906706,0.00011416,2]
[421775393,1778136631000,-150.0,0.00011416,2]
[421775391,1778136631000,-23.28124057,0.00011416,2]
[421775400,1778136631000,-150.0,0.00011522,2]
[421775389,1778136631000,-385.37598275,0.00011248,2]
[421775388,1778136631000,-557.57394,0.00011248,2]
[421775394,1778136631000,-150.0,0.00011416,2]
[421775407,1778136631000,-150.0,0.00011628,2]
[421775437,1778136631000,-150.0,0.00012178,2]
[421775409,1778136631000,-150.0,0.0001167,2]
[421775408,1778136631000,-150.0,0.00011647,2]
[421775430,1778136631000,-261.0,0.00012106,2]
[421775427,1778136631000,-150.0,0.00012051,2]
[421775434,1778136631000,-150.0,0.00012108,2]
[421775435,1778136631000,-150.0,0.00012156,2]
[421775429,1778136631000,-925.5858828,0.00012078,2]
[421775439,1778136631000,-59.51656805,0.00012224,2]
[421775423,1778136631000,-1679.69,0.00012,2]
[421775419,1778136631000,-1648.82742936,0.00011962,2]
[421775420,1778136631000,-200.0,0.00011963,2]
[421775425,1778136631000,-150.0,0.00012051,2]
[421775422,1778136631000,-150.0,0.00011993,2]
[421775424,1778136631000,-706.03,0.00012032,2]
[421775415,1778136631000,-150.0,0.00011839,2]
[421775418,1778136631000,-150.0,0.00011945,2]
[421775416,1778136631000,-150.0,0.00011878,2]
[421775414,1778136631000,-150.0,0.00011839,2]
[421775417,1778136631000,-150.0,0.00011924,2]
[421775410,1778136631000,-1679.69,0.00011714,2]
[421775421,1778136631000,-194.59,0.00011981,2]
[421775411,1778136631000,-150.0,0.00011734,2]
[421775451,1778136632000,-150.0,0.00012368,2]
[421775446,1778136632000,-1500.54423053,0.00012286,2]
[421775445,1778136632000,-179.14576947,0.00012286,2]
[421775441,1778136632000,-90.48343195,0.00012224,2]
[421775444,1778136632000,-150.0,0.00012262,2]
[421775442,1778136632000,-150.0,0.00012262,2]
[421775450,1778136632000,-500.0,0.00012341,2]
[421775443,1778136632000,-150.0,0.00012262,2]
[421775455,1778136632000,-150.0,0.00012474,2]
[421775452,1778136632000,-150.0,0.00012431,2]
[421775447,1778136632000,-150.0,0.00012339,2]
[421775457,1778136632000,-78.13439007,0.00012474,2]
[421775456,1778136632000,-71.86560993,0.00012474,2]
[421775448,1778136632000,-1477.71915958,0.00012341,2]
[421775454,1778136632000,-150.0,0.00012454,2]
[421775453,1778136632000,-207.57,0.00012432,2]
[421775459,1778136632000,-102.77380468,0.00012504,2]
[421775458,1778136632000,-300.0,0.000125,4]
[421775449,1778136632000,-162.501,0.00012341,2]
[421775474,1778136640000,-193.0,0.00012558,2]
[421775473,1778136640000,-210.66506833,0.00012557,2]
[421775471,1778136640000,-2080.17592889,0.00012517,2]
[421775479,1778136640000,-151.98442756,0.00012583,2]
[421775469,1778136640000,-403.82404812,0.00012504,2]
[421775480,1778136640000,-171.49917907,0.00012592,2]
[421775470,1778136640000,-2427.33960243,0.00012504,2]
[421775472,1778136640000,-300.0,0.00012539,2]
[421775478,1778136640000,-150.0,0.00012579,2]
[421775477,1778136640000,-1679.69,0.00012571,2]
[421775475,1778136640000,-250.0,0.00012558,2]
[421775488,1778136640000,-1227.7842312,0.00012593,2]
[421775484,1778136640000,-150.0,0.00012592,2]
[421775482,1778136640000,-500.0,0.00012592,2]
[421775487,1778136640000,-741.0,0.00012593,2]
[421775476,1778136640000,-150.0,0.0001257,2]
[421775486,1778136640000,-13969.65698866,0.00012593,2]
[421775483,1778136640000,-200.65538816,0.00012592,2]
[421775489,1778136640000,-103.07604825,0.00012593,2]
[421775481,1778136640000,-441.68751321,0.00012592,2]
[421775485,1778136640000,-18441.40080597,0.00012593,2]
[421775493,1778136641000,-615.21547425,0.00012593,2]
[421775492,1778136641000,-380.52932165,0.00012593,2]
[421775491,1778136641000,-16332.41294891,0.00012593,2]
[421775490,1778136641000,-1731.15205207,0.00012593,2]
[421775514,1778136643000,-143335.23549079,0.00012593,2]
[421775518,1778136643000,-522.19,0.00012593,2]
[421775520,1778136643000,-546.0,0.00012593,2]
[421775519,1778136643000,-56299.9999985,0.00012593,2]
[421775521,1778136643000,-513.16446684,0.00012593,2]
[421775527,1778136660000,-10000.01,0.00012493,2]
[421775531,1778136684000,-9700.01,0.00012493,2]
[421775530,1778136684000,-300.0,0.00012492,2]
[421775528,1778136684000,-1477.473217,0.0001243,2]
[421775529,1778136684000,-8522.536783,0.00012493,2]
[421775534,1778136855000,156.3,6.309e-05,2]
[421775535,1778136855000,156.3,7.01e-05,2]
[421775536,1778136855000,156.3,7.711e-05,2]
[421775541,1778136856000,156.3,0.00011215,2]
[421775540,1778136856000,156.3,0.00010514,2]
[421775539,1778136856000,156.3,9.813e-05,2]
[421775538,1778136856000,156.3,9.112e-05,2]
[421775537,1778136856000,156.3,8.411e-05,2]
[421775542,1778136857000,156.3,0.00011916,2]
[421775543,1778136986000,5000.0,0.0003013,120]
[421775545,1778136993000,3809.74,0.00011804,2]
[421775546,1778136995000,5103.0,0.0003013,120]
[421775547,1778137030000,150.0,0.00011779,2]
[421775548,1778137057000,1000.0,0.00011788,2]
[421775549,1778137175000,1135.18,0.00011669,2]
[421775550,1778137187000,-279.59431339,0.00012292,2]
[421775551,1778137187000,-279.59431337,0.00012293,2]
[421775552,1778137187000,-2500.0,0.00012293,2]
[421775553,1778137187000,-279.59431337,0.00012293,2]
[421775554,1778137187000,-2699.76125035,0.00012293,2]
[421775558,1778137187000,-500.0,0.00012392,2]
[421775556,1778137187000,-300.0,0.00012391,2]
[421775555,1778137187000,-250.0,0.00012342,2]
[421775559,1778137187000,-273.31156508,0.00012392,2]
[421775561,1778137187000,-500.0,0.00012392,2]
[421775557,1778137187000,-500.0,0.00012392,2]
[421775560,1778137187000,-159.18125925,0.00012392,2]
[421775575,1778137188000,-500.0,0.00012392,2]
[421775562,1778137188000,-500.0,0.00012392,2]
[421775563,1778137188000,-500.0,0.00012392,2]
[421775564,1778137188000,-500.0,0.00012392,2]
[421775565,1778137188000,-500.0,0.00012392,2]
[421775566,1778137188000,-500.0,0.00012392,2]
[421775567,1778137188000,-200.0,0.00012392,2]
[421775568,1778137188000,-500.0,0.00012392,2]
[421775570,1778137188000,-500.0,0.00012392,2]
[421775569,1778137188000,-500.0,0.00012392,2]
[421775571,1778137188000,-500.0,0.00012392,2]
[421775573,1778137188000,-500.0,0.00012392,2]
[421775572,1778137188000,-500.0,0.00012392,2]
[421775578,1778137188000,-300.0,0.00012392,2]
[421775576,1778137188000,-300.0,0.00012392,2]
[421775577,1778137188000,-1200.0,0.00012392,2]
[421775579,1778137188000,-339.36699627,0.00012393,2]
[421775580,1778137188000,-617619.8507,0.00012393,2]
[421775582,1778137188000,-2130.5009,0.00012393,2]
[421775581,1778137188000,-2000.0,0.00012393,2]
[421775585,1778137188000,-167.42,0.00012427,2]
[421775586,1778137188000,-150.0,0.00012427,2]
[421775584,1778137188000,-337.73190186,0.00012393,2]
[421775583,1778137188000,-5000.0,0.00012393,2]
[421775587,1778137188000,-500.8491784,0.00012473,2]
[421775588,1778137188000,-1354733.24330866,0.00012493,2]
[421775574,1778137188000,-500.0,0.00012392,2]
[421775593,1778137354000,281.72801831,8e-05,2]
[421775594,1778137358000,3664.56787214,0.00011,2]
[421775598,1778137441000,200.0,0.00011722,2]
[421775599,1778137475000,1500.01480014,0.00013,15]
[421775601,1778137493000,2000.0,0.00011669,2]
[421775600,1778137493000,160.06,0.00011669,2]
[421775604,1778137743000,700.0,0.000117,4]
[421775603,1778137743000,300.0,0.000116,4]
[421775607,1778137744000,-192.02410955,0.00011752,2]
[421775606,1778137744000,1400.0,0.000119,4]
[421775605,1778137744000,1000.0,0.000118,4]
[421775608,1778137745000,-307.97589045,0.00011752,2]
[421775721,1778137859000,-250.0,0.0001165,2]
[421775737,1778137864000,-543.46188568,0.00012192,2]
[421775739,1778137864000,-543.46188568,0.00012192,2]
[421775734,1778137864000,-543.46188568,0.00012192,2]
[421775735,1778137864000,-543.46188568,0.00012192,2]
[421775736,1778137864000,-543.46188568,0.00012192,2]
[421775732,1778137864000,-500.0,0.00012192,2]
[421775738,1778137864000,-543.46188568,0.00012192,2]
[421775728,1778137864000,-162.501,0.00012047,2]
[421775727,1778137864000,-1709.035,0.00012047,2]
[421775731,1778137864000,-150.0,0.00012192,2]
[421775729,1778137864000,-10409.45899148,0.00012093,2]
[421775726,1778137864000,-22970.41677761,0.00012,2]
[421775740,1778137864000,-543.46188568,0.00012192,2]
[421775725,1778137864000,-70225.23567703,0.00012,2]
[421775723,1778137864000,-487.89658391,0.00012,2]
[421775724,1778137864000,-566.65320492,0.00012,2]
[421775722,1778137864000,-250.0,0.0001175,2]
[421775733,1778137864000,-543.46188568,0.00012192,2]
[421775746,1778137864000,-500.0,0.00012192,2]
[421775730,1778137864000,-151.98442756,0.00012183,2]
[421775742,1778137864000,-543.46188568,0.00012192,2]
[421775743,1778137864000,-500.0,0.00012192,2]
[421775761,1778137864000,-6061.57519651,0.00012193,2]
[421775760,1778137864000,-365643.06402697,0.00012193,2]
[421775758,1778137864000,-16332.41294891,0.00012193,2]
[421775759,1778137864000,-380.52932165,0.00012193,2]
[421775757,1778137864000,-3618.60026185,0.00012193,2]
[421775755,1778137864000,-895.41,0.00012193,2]
[421775751,1778137864000,-212329.58363539,0.00012193,2]
[421775756,1778137864000,-456.00465215,0.00012193,2]
[421775753,1778137864000,-901.23418243,0.00012193,2]
[421775754,1778137864000,-1237.08734021,0.00012193,2]
[421775749,1778137864000,-5000.0,0.00012193,2]
[421775748,1778137864000,-500.0,0.00012192,2]
[421775750,1778137864000,-2500.0,0.00012193,2]
[421775741,1778137864000,-543.46188568,0.00012192,2]
[421775745,1778137864000,-500.0,0.00012192,2]
[421775744,1778137864000,-500.0,0.00012192,2]
[421775747,1778137864000,-500.0,0.00012192,2]
[421775752,1778137864000,-22783.8009357,0.00012193,2]
[421775766,1778137865000,-31.8009267,0.00012193,2]
[421775762,1778137865000,-6087.10756133,0.00012193,2]
[421775763,1778137865000,-709.06332791,0.00012193,2]
[421775764,1778137865000,-1029.67326749,0.00012193,2]
[421775765,1778137865000,-416.0,0.00012193,2]
[421775767,1778137865000,-356.2383812,0.00012193,2]
[421775770,1778137865000,-379.86433002,0.00012193,2]
[421775769,1778137865000,-479.21250253,0.00012193,2]
[421775773,1778137865000,-381.13930652,0.00012193,2]
[421775772,1778137865000,-392.00860854,0.00012193,2]
[421775771,1778137865000,-2935.83537629,0.00012193,2]
[421775774,1778137865000,-885.94882332,0.00012193,2]
[421775768,1778137865000,-7326.14771073,0.00012193,2]
[421775788,1778137995000,-331.65736253,0.00012192,2]
[421775787,1778137995000,-500.0,0.00012192,2]
[421775786,1778137995000,-500.0,0.00012192,2]
[421775784,1778137995000,-461.42688147,0.00012192,2]
[421775785,1778137995000,-500.0,0.00012192,2]
[421775783,1778137995000,-541.31809556,0.00012192,2]
[421775782,1778137995000,-300.0,0.0001219,2]
[421775780,1778137995000,-3678.0062,0.00012093,2]
[421775779,1778137995000,-10125.7706,0.00012093,2]
[421775778,1778137995000,-150.0,0.00012,2]
[421775777,1778137995000,-150.0,0.00011677,2]
[421775789,1778137995000,-500.0,0.00012192,2]
[421775776,1778137995000,-1000.0,0.00011624,2]
[421775781,1778137995000,-2293.62276699,0.00012093,2]
[421775790,1778137995000,-500.0,0.00012192,2]
[421775803,1778137995000,-500.0,0.00012192,2]
[421775791,1778137995000,-500.0,0.00012192,2]
[421775806,1778137995000,-500.0,0.00012192,2]
[421775804,1778137995000,-500.0,0.00012192,2]
[421775805,1778137995000,-500.0,0.00012192,2]
[421775802,1778137995000,-500.0,0.00012192,2]
[421775800,1778137995000,-500.0,0.00012192,2]
[421775801,1778137995000,-500.0,0.00012192,2]
[421775794,1778137995000,-500.0,0.00012192,2]
[421775795,1778137995000,-500.0,0.00012192,2]
[421775796,1778137995000,-500.0,0.00012192,2]
[421775797,1778137995000,-500.0,0.00012192,2]
[421775798,1778137995000,-500.0,0.00012192,2]
[421775793,1778137995000,-500.0,0.00012192,2]
[421775792,1778137995000,-500.0,0.00012192,2]
[421775799,1778137995000,-500.0,0.00012192,2]
[421775809,1778137996000,-500.0,0.00012192,2]
[421775807,1778137996000,-500.0,0.00012192,2]
[421775808,1778137996000,-500.0,0.00012192,2]
[421775813,1778137996000,-500.0,0.00012192,2]
[421775810,1778137996000,-500.0,0.00012192,2]
[421775812,1778137996000,-500.0,0.00012192,2]
[421775815,1778137996000,-300.0,0.00012192,2]
[421775816,1778137996000,-593518.19809345,0.00012193,2]
[421775811,1778137996000,-500.0,0.00012192,2]
[421775814,1778137996000,-150.0,0.00012192,2]
[421775817,1778138073000,150.0,0.000118,2]
[421775819,1778138235000,200.0,0.00011802,2]
[421775820,1778138294000,2000.0,0.0001174,2]
[421775821,1778138323000,-7650.01,0.00011993,2]
[421775822,1778138426000,-2919.00310359,0.00011993,2]
[421775823,1778138427000,-2919.00310359,0.00011993,2]
[421775824,1778138428000,-2919.00310359,0.00011993,2]
[421775826,1778138428000,-1650.1513071,0.00011993,2]
[421775825,1778138428000,-434.60594865,0.00011993,2]
[421775831,1778138525000,2500.0,0.00011993,2]
[421775835,1778138621000,1443.88239373,0.00011993,2]
[421775836,1778138648000,2130.5009,0.00011993,2]
[421775837,1778138662000,2500.0,0.00011993,2]
[421775838,1778138681000,233.2410153,0.00012762,21]
[421775841,1778138722000,5538.76546292,0.00011993,2]
[421775840,1778138722000,4461.24453708,0.00011993,2]
[421775839,1778138722000,1425.62670627,0.00011993,2]
[421775849,1778139031000,-567.59,0.00011531,2]
[421775850,1778139031000,-157.37,0.00011577,2]
[421775852,1778139031000,-1419.54930197,0.00011893,2]
[421775851,1778139031000,-150.0,0.00011577,2]
[421775853,1778139031000,-534.0,0.00011897,2]
[421775855,1778139031000,-6314.9125146,0.000119,2]
[421775857,1778139031000,-154.70629453,0.00011969,2]
[421775856,1778139031000,-3197.19927855,0.000119,2]
[421775854,1778139031000,-1200.0,0.00011899,2]
[421775858,1778139031000,-500.0,0.00011969,2]
[421775874,1778139032000,-500.0,0.00011992,2]
[421775871,1778139032000,-500.0,0.00011992,2]
[421775868,1778139032000,-500.0,0.00011992,2]
[421775873,1778139032000,-500.0,0.00011992,2]
[421775869,1778139032000,-500.0,0.00011992,2]
[421775870,1778139032000,-500.0,0.00011992,2]
[421775864,1778139032000,-500.0,0.00011992,2]
[421775862,1778139032000,-500.0,0.00011992,2]
[421775867,1778139032000,-500.0,0.00011992,2]
[421775865,1778139032000,-500.0,0.00011992,2]
[421775863,1778139032000,-500.0,0.00011992,2]
[421775859,1778139032000,-602.57091286,0.00011969,2]
[421775860,1778139032000,-150.0,0.00011969,2]
[421775861,1778139032000,-188.41820552,0.00011983,2]
[421775866,1778139032000,-500.0,0.00011992,2]
[421775872,1778139032000,-546.62239084,0.00011992,2]
[421775879,1778139032000,-500.0,0.00011992,2]
[421775876,1778139032000,-500.0,0.00011992,2]
[421775895,1778139032000,-550.00639416,0.00011993,2]
[421775894,1778139032000,-298.12465464,0.00011993,2]
[421775892,1778139032000,-749.40219185,0.00011993,2]
[421775893,1778139032000,-255.75980045,0.00011993,2]
[421775889,1778139032000,-22105.59287678,0.00011993,2]
[421775891,1778139032000,-739.83242181,0.00011993,2]
[421775885,1778139032000,-610.08481082,0.00011993,2]
[421775875,1778139032000,-500.0,0.00011992,2]
[421775883,1778139032000,-73781.91851378,0.00011993,2]
[421775880,1778139032000,-500.0,0.00011992,2]
[421775882,1778139032000,-500.0,0.00011992,2]
[421775881,1778139032000,-500.0,0.00011992,2]
[421775877,1778139032000,-500.0,0.00011992,2]
[421775878,1778139032000,-500.0,0.00011992,2]
[421775884,1778139032000,-25850.22654463,0.00011993,2]